Workbook

Sheet Sheet1

Sheet 計算書テンプレート (hidden)
L1: YYYY/MM/DD
A2: MAデッキ合成スラブの構造計算書 | F2: (MAXX-X.Xタイプ)
A3: ■前提
B4: ①構造設計は、(財)日本建築センター編「デッキプレート版技術基準解説及び設計・計算例」、および(社)日本鉄鋼連盟編「デッキプレート床構造設計・施工規準-2018」による。
B5: ②同規準に従い、合成スラブ床は単純支持条件で計算する。
B6: ③デッキプレート施工時単純支持がNGの場合は、連続支持条件とする。
A7: ■工事名称および用途
B8: XXXXXXXX (用途: XXXXXXXX)
A9: ■設計条件
B10: ①スパン | E10: 最大スパン | F10: (L) | G10: = | H10: 0.000 | I10: m
E11: デッキ幅方向のスラブ長さ | F11: (Lx) | G11: = | H11: 0.000 | I11: m
E12: デッキ長手方向のスラブ長さ | F12: (Ly) | G12: = | H12: 0.000 | I12: m
B13: ②デッキプレート | E13: 種類 | G13: :
E14: 板厚 | F14: (t) | G14: = | H14: 0.0 | I14: mm
E15: デッキプレートの全せい | F15: (H) | G15: = | H15: 0 | I15: mm
E16: デッキ基準強度 | F16: (F) | G16: = | H16: 0 | I16: N/mm2
E17: デッキ自重 | F17: (Ｗsd) | G17: = | H17: 0.00 | I17: kg/m2
E18: 断面2次モーメント | F18: (sI) | G18: = | H18: 0.00 | I18: ×104mm4
E19: 断面係数 | F19: (sZ) | G19: = | H19: 0.00 | I19: ×103mm3
E20: 鋼材のヤング係数 | F20: (Es) | G20: = | H20: 0.00 | I20: ×105N/mm2
B21: ③合成スラブ | E21: コンクリート基準強度 | F21: (Fc） | G21: = | H21: 0 | I21: N/mm2
E22: 鉄筋コンの単位体積重量 | F22: (γ） | G22: = | H22: 0 | I22: (KN/m3)
E23: 山上コンクリート厚さ | F23: (S） | G23: = | H23: 0 | I23: mm
E24: 床スラブ自重 | F24: (Ws) | G24: = | H24: 0 | I24: N/m2 | J24: (デッキ自重+鉄筋コン自重）
E25: 増打ちコンクリート厚さ | F25: (S0) | G25: = | H25: 0 | I25: mm | J25: (同時コンクリート打設）
E26: 増打ちコンクリート自重 | F26: (Ｗcs） | G26: = | H26: 0 | I26: N/m2 | J26: (=S0*γ(N/㎡))
E27: 断面2次モーメント | F27: (cIn） | G27: = | H27: 0 | I27: ×104mm4
E28: コンクリート用断面係数 | F28: (cZc） | G28: = | H28: 0 | I28: ×103mm3
E29: デッキ用断面係数 | F29: (cZt） | G29: = | H29: 0.0 | I29: ×103mm3
E30: 負曲げ断面係数 | F30: (cZe） | G30: = | H30: 0 | I30: ×103mm3
E31: たわみ増大係数 | F31: (k) | G31: = | H31: 0.0
E32: ヤング係数比 | F32: (n) | G32: = | H32: 0
B33: ④溶接金網または鉄筋 | E33: 断面積 | F33: (ar) | G33: = | H33: 0.00 | I33: mm2/m
B34: ⑤梁との接合形式 | E34: 焼抜き栓溶接間隔 | F34: (dw1） | G34: = | H34: 0 | I34: mm
B35: ⑤梁との接合形式 | E35: 打込み鋲間隔 | F35: (dw2） | G35: = | H35: 0 | I35: mm
B36: ⑤梁との接合形式 | E36: 頭付きスタッド | G36: ：
E37: ・径 | F37: (d) | G37: = | H37: 0 | I37: mm
E38: ・間隔 | F38: (Ds) | G38: = | H38: 0 | I38: mm
E39: 標準せん断力係数 | F39: (kq) | G39: = | H39: 0.00
B40: ⑥床耐火時間 | G40: ：
A41: ■設計荷重の算出
B42: ①天井仕上げ荷重 | F42: Wce | G42: = | H42: 0 | I42: N/m2
B43: ②(天井仕上げ+増しコン) 荷重 | F43: Ｗ0 | G43: = | H43: 0 | I43: N/m2 | J43: (=Ｗce+Ｗcs）
B44: ③固定荷重 | F44: Ｗdl | G44: = | H44: 0 | I44: N/m2 | J44: (=Ｗs+Ｗ0）
B45: ④施工時荷重 | F45: Ｗc | G45: = | H45: 0 | I45: N/m2
B46: ⑤積載荷重 | F46: Ｗll | G46: = | H46: 0 | I46: N/m2
B47: ⑥地震時荷重 | F47: Ｗq | G47: = | H47: 0 | I47: N/m2
A48: ■応力・たわみ検定
B49: Ⅰ) デッキ施工時の検定 (短期) | F49: wW | G49: = | H49: 0 | I49: N/m2 | J49: (=Ｗs+Wcs+Ｗc）
C50: ・応力検定 | E50: σy=1/8・wＷ・L2/sZ | G50: = | H50: 0 | I50: N/mm2 | J50: ≦ F = | K50: 0 | L50: N/mm2
C51: ・たわみ検定 (単純支持) | E51: ssδy=5/384・wＷ・L4/(Es・sI） | G51: = | H51: 0.00 | I51: mm | J51: ≦ L*103/180 = | K51: 0.0 | L51: mm and 20mm
C52: ・たわみ検定 (連続支持) | E52: csδy=1/145・wＷ・L4/(Es・sI） | G52: = | H52: 0.00 | I52: mm | J52: ≦ L*103/180 = | K52: 0.0 | L52: mm and 20mm
B53: Ⅱ) 設計時の検定 (長期） | F53: LW | G53: = | H53: 0 | I53: N/m2 | J53: (=Ｗdl+Ｗll)
C54: ・応力検定 (デッキプレート) | E54: sσy=1/8・LＷ・L2/cZt | G54: = | H54: 0.0 | I54: N/mm2 | J54: ≦ F/1.5 = | K54: 0 | L54: N/mm2
C55: ・応力検定 (コンクリート) | E55: cσy=1/8・LＷ・L2/cZc | G55: = | H55: 0.00 | I55: N/mm2 | J55: ≦ Fc/3 = | K55: 0.00 | L55: N/mm2
F56: DW | G56: = | H56: 0 | I56: N/m2 | J56: (=Ｗce+Ｗll）
C57: ・たわみ検定 | E57: δy=k*n*5/384・DＷ・L4/(Es・cIn） | G57: = | H57: 0.00 | I57: mm | J57: ≦ L*103/250 = | K57: 0.0 | L57: mm
B58: Ⅲ) ひび割れ拡大防止の検定 | F58: cW | G58: = | H58: 0 | I58: N/m2 | J58: (=Ｗce+Ｗll）
C59: ・応力検定 | E59: σc=1/12・cＷ・L2/cZe | G59: = | H59: 0.00 | I59: N/mm2 | J59: ≦ 0.62√Fc = | K59: 0.00 | L59: N/mm2
C60: ・鉄筋量検定 | E60: pt=ar/(S+S0)/10 | G60: = | H60: 0.00 | I60: % | J60: ≧ | K60: 0.20 | L60: ％
C61: ・梁上鉄筋量検定 [推奨] | E61: pt=(ar+aD10*200)/(S+H+S0)/10 | G61: = | H61: 0.00 | I61: % | J61: ≧ | K61: 0.20 | L61: ％
B62: Ⅳ) 梁との接合強度検定 (短期) | F62: qW | G62: = | H62: 0 | I62: KN/m2 | J62: (=Ｗdl+Ｗq）
C63: ・焼抜き栓溶接の場合
D64: ・許容せん断力 (短期) | F64: (qw1) | G64: = | H64: 0 | I64: N/mm2
D65: ・地震時せん断力 | E65: qQ=1/2・kq・qＷ・Lx・Ly/103 | G65: = | H65: 0.0 | I65: KN | J65: ≦ Qa = (qw1/dw1)・Ly = | K65: 0.0 | L65: KN
C66: ・打込み鋲の場合
D67: ・許容せん断力 (短期) | F67: (qw2) | G67: = | H67: 0 | I67: N/mm2
D68: ・地震時せん断力 | E68: qQ=1/2・kq・qＷ・Lx・Ly/103 | G68: = | H68: 0.0 | I68: KN | J68: ≦ Qa = (qw2/dw2)・Ly = | K68: 0.0 | L68: KN
C69: ・頭付きスタッドの場合
E70: 断面積 (sca） | G70: = | H70: 0.00 | I70: mm2
E71: コンクリートヤング係数 (Ec) | G71: = | H71: 0.000 | I71: ×105N/mm2 | J71: (=21000・(γ/23)1.5・√(Fc/20))
E72: √(Fc・Ec) | G72: = | H72: 0 | I72: N/mm2 | J72: (500≦√(Fc・Ec)≦900)
D73: ・頭付きスタッドの耐力 | E73: qs | G73: = | H73: 0 | I73: N | J73: (=0.5・scａ√(Fc・Ec))
D74: ・間隔検定 | E74: ds=qs/S/(Fc/10) | G74: = | H74: 0 | I74: mm | J74: ≧ Ds = | K74: 0 | L74: mm
A75: ■無被覆耐火構造認定の検定 | F75: fW | G75: = | H75: 0 | I75: N/m2 | J75: (=Ｗ0+Ｗll）
B76: ・耐火認定荷重検定 | E76: fＷa=5,400*(3.4/L)2 | F76: fＷa | G76: = | H76: 0 | I76: N/m2 | J76: ≧ fＷ = | K76: 0 | L76: N/m2
B77: ・デッキスパン検定 | F77: La | G77: = | H77: 0 | I77: mm | J77: ≧ L = | K77: 0 | L77: mm
B78: ・山上コンクリート厚さ検定 | F78: Sa | G78: = | H78: 0 | I78: mm | J78: ≦ S = | K78: 0 | L78: mm
M80: 以上

Sheet MA50-1.0 (hidden)
A1: ＭＡ５０デッキ 1.0㎜ 合成スラブ用計算表 | E1: （ＳＩ単位）
A3: 入力データ
B4: 普通ｺﾝｸﾘｰﾄ単重重量 | C4: ｺﾝｸﾘｰﾄ圧縮強度 | D4: 正曲げ用ヤング係数比 | E4: 負曲げ用ヤング係数比 | F4: ﾃﾞｯｷ降伏点強度
B5: ρ (KN/m3) | C5: Ｆc (N/mm2) | D5: ｎｐ | E5: ｎｍ | F5: Ｆ (N/mm2)
B6: 24 | C6: 21 | D6: 15 | E6: 15 | F6: 235
A8: デッキ単体データ
B9: デッキ厚さ | C9: 断面積 | D9: 断面２次ﾓｰﾒﾝﾄ | E9: 中立軸 | F9: 断面係数 | G9: デッキ重量 | H9: デッキ高さ | I9: ﾔﾝｸﾞ率
B10: ｔ (mm) | C10: a (mm2) | D10: sＩ (mm4/m) | E10: cm | F10: Z (mm3/m) | G10: kg/m2 | H10: cm | I10: KN/mm2
B11: 1 | C11: 13.85 | D11: 56.4 | E11: 2.552 | F11: 22.1 | G11: 11 | H11: 5 | I11: 205
A12: コンクリート部データ
B13: コンクリート断面積 | C13: コン | D13: ｺﾝｸﾘｰﾄ断面２次ﾓｰﾒﾝﾄ | E13: 単位幅 | F13: 溝部換算ｺﾝｸﾘｰﾄ厚さ | G13: 軽量１種ｺﾝｸﾘｰﾄ単位重量 | H13: 軽量2種ｺﾝｸﾘｰﾄ単位重量
B14: AC (cm2/m) | C14: XC (cm) | D14: Ic (cm4/m) | E14: B (cm) | F14: Hc (cm) | G14: ρ (KN/m3) | H14: ρ (KN/m3)
B15: 251.4 | C15: 2.216 | D15: 500.97 | E15: 100 | F15: 2.514 | G15: 20 | H15: 18
A17: 明治合成スラブの重量及び断面性能
A18: 断面性能 | C18: MA50 t=1.0mm Z12
A19: Ｓ (mm) 山上コンクリート厚さ | C19: 50 | D19: 55 | E19: 60 | F19: 65 | G19: 70 | H19: 75 | I19: 80 | J19: 85 | K19: 90 | L19: 95 | M19: 100
A20: Sd | B20: x 10 mm | C20: =C19/10+$E$11 -> 7.55 | D20: 8.05 | E20: 8.55 | F20: 9.05 | G20: 9.55 | H20: 10.05 | I20: 10.55 | J20: 11.05 | K20: 11.55 | L20: 12.05 | M20: 12.55
A21: cＸn | B21: x 10 mm | C21: =(-$D$6*$C$11+($D$6^2*$C$11^2+2*$D$6*$E$15*$C$11*C20)^(1/2))/$E$15 -> 3.90 | D21: 4.07 | E21: 4.24 | F21: 4.40 | G21: 4.56 | H21: 4.71 | I21: 4.86 | J21: 5.01 | K21: 5.16 | L21: 5.30 | M21: 5.44
A22: c In | B22: x 10^4 mm4 | C22: =INT(($E$15*C21^3)/3+$D$6*($D$11+$C$11*(C20-C21)^2)) -> 5594 | D22: =INT(($E$15*D21^3)/3+$D$6*($D$11+$C$11*(D20-D21)^2)) -> 6387 | E22: 7249 | F22: 8181 | G22: 9183 | H22: 10257 | I22: 11403 | J22: 12621 | K22: 13913 | L22: 15279 | M22: 16720
A23: cＺc | B23: x 10^3 mm3 | C23: =INT(C22/C21) -> 1435 | D23: =INT(D22/D21) -> 1569 | E23: 1711 | F23: 1860 | G23: 2015 | H23: 2177 | I23: 2345 | J23: 2519 | K23: 2698 | L23: 2884 | M23: 3075
A24: cＺt | B24: x10^3 mm3 | C24: =INT(C22/($D$6*(C19/10+$H$11-C21))*10)/10 -> 61.1 | D24: =INT(D22/($D$6*(D19/10+$H$11-D21))*10)/10 -> 66.2 | E24: 71.4 | F24: 76.7 | G24: 82.2 | H24: 87.7 | I24: 93.4 | J24: 99.1 | K24: 104.8 | L24: 110.6 | M24: 116.5
A25: cSn | B25: x 10^3 mm2 | C25: =$D$6*$C$11*(C19/10+$E$11-C21) -> 759.3 | D25: =$D$6*$C$11*(D19/10+$E$11-D21) -> 827.6 | E25: 896.8 | F25: 966.9 | G25: 1037.9 | H25: 1109.6 | I25: 1182.1 | J25: 1255.2 | K25: 1328.9 | L25: 1403.2 | M25: 1478.1
A26: eXn | B26: x 10 mm | C26: =((1/2)*$E$15*(C19/10)^2+$B$15*(C19/10+$C$15)+$E$6*$C$11*C20)/($E$15*C19/10+$B$15+$E$6*$C$11) -> 4.83 | D26: =((1/2)*$E$15*(D19/10)^2+$B$15*(D19/10+$C$15)+$E$6*$C$11*D20)/($E$15*D19/10+$B$15+$E$6*$C$11) -> 5.08 | E26: 5.33 | F26: 5.58 | G26: 5.82 | H26: 6.07 | I26: 6.32 | J26: 6.57 | K26: 6.82 | L26: 7.07 | M26: 7.32
A27: fＩ | B27: x 10^4 mm4 | C27: =INT(($E$15*(C19/10)^3)/12+$E$15*C19/10*(C26-C19/10/2)^2+$D$15+$B$15*(C19/10+$C$15-C26)^2+$E$6*($D$11+$C$11*(C20-C26)^2)) -> 8073 | D27: =INT(($E$15*(D19/10)^3)/12+$E$15*D19/10*(D26-D19/10/2)^2+$D$15+$B$15*(D19/10+$C$15-D26)^2+$E$6*($D$11+$C$11*(D20-D26)^2)) -> 9301 | E27: 10654 | F27: 12141 | G27: 13765 | H27: 15535 | I27: 17456 | J27: 19534 | K27: 21776 | L27: 24188 | M27: 26775
A28: cＺe | B28: x 10^3 mm3 | C28: =INT(C27/C26) -> 1671 | D28: =INT(D27/D26) -> 1831 | E28: 1999 | F28: 2177 | G28: 2363 | H28: 2557 | I28: 2761 | J28: 2972 | K28: 3192 | L28: 3421 | M28: 3658
A30: 重量 | B30: 普通ｺﾝｸﾘｰﾄ | C30: =$B$6*(C19+$F$15*10)+$G$11*9.8 -> 1911 | D30: =$B$6*(D19+$F$15*10)+$G$11*9.8 -> 2031 | E30: 2151 | F30: 2271 | G30: 2391 | H30: 2511 | I30: 2631 | J30: 2751 | K30: 2871 | L30: 2991 | M30: 3111
A31: (N/m2) | B31: １種軽量ｺﾝｸﾘｰﾄ | C31: =$G$15*(C19+$F$15*10)+$G$11*9.8 -> 1611 | D31: =$G$15*(D19+$F$15*10)+$G$11*9.8 -> 1711 | E31: 1811 | F31: 1911 | G31: 2011 | H31: 2111 | I31: 2211 | J31: 2311 | K31: 2411 | L31: 2511 | M31: 2611
A32: 含む ﾃﾞｯｷ + ｺﾝｸﾘｰﾄ | B32: ２種軽量ｺﾝｸﾘｰﾄ | C32: =$H$15*(C19+$F$15*10)+$G$11*9.8 -> 1460 | D32: =$H$15*(D19+$F$15*10)+$G$11*9.8 -> 1550 | E32: 1640 | F32: 1730 | G32: 1820 | H32: 1910 | I32: 2000 | J32: 2090 | K32: 2180 | L32: 2270 | M32: 2360
A34: Sd | B34: コンクリート等価厚さ | J34: ( 単重量 )
A35: cＸn | B35: 有効等価断面の合成スラブ圧縮縁から中立軸までの距離 | J35: 普通ｺﾝｸﾘｰﾄ 24 KN/m3
A36: c In | B36: 引張側コンクリートを無視した合成スラブの中立軸回りの有効等価断面二次モーメント（コンクリート換算） | J36: １種軽量ｺﾝｸﾘｰﾄ 20 KN/m3
A37: cＺc | B37: 有効等価断面の圧縮側断面係数 | J37: ２種軽量ｺﾝｸﾘｰﾄ 18 KN/m3
A38: cＺt | B38: 有効等価断面の引張側断面係数 | J38: （ デッキ自重修正表 ） 上記重量表に加算
A39: cSn | B39: 有効等価断面の中立軸回りの有効等価断面一次モーメント
A40: eXn | B40: 全断面有効の合成スラブ上端から中立軸までの距離
A41: fＩ | B41: 全断面有効の合成スラブの中立軸回りの等価断面二次モーメント（コンクリート換算）
A42: cＺe | B42: 全断面有効の合成スラブ上端からの断面性能

Sheet MA50-1.2 (hidden)
A1: ＭＡ５０デッキ 1.2㎜ 合成スラブ用計算表 | E1: （ＳＩ単位）
A3: 入力データ
B4: 普通ｺﾝｸﾘｰﾄ単重重量 | C4: ｺﾝｸﾘｰﾄ圧縮強度 | D4: 正曲げ用ヤング係数比 | E4: 負曲げ用ヤング係数比 | F4: ﾃﾞｯｷ降伏点強度
B5: ρ (KN/m3) | C5: Ｆc (N/mm2) | D5: ｎｐ | E5: ｎｍ | F5: Ｆ (N/mm2)
B6: 24 | C6: 21 | D6: 15 | E6: 15 | F6: 235
A8: デッキ単体データ
B9: デッキ厚さ | C9: 断面積 | D9: 断面２次ﾓｰﾒﾝﾄ | E9: 中立軸 | F9: 断面係数 | G9: デッキ重量 | H9: デッキ高さ | I9: ﾔﾝｸﾞ率
B10: ｔ (mm) | C10: a (mm2) | D10: sＩ (mm4/m) | E10: cm | F10: Z (mm3/m) | G10: kg/m2 | H10: cm | I10: KN/mm2
B11: 1.2 | C11: 16.37 | D11: 67.8 | E11: 2.55 | F11: 26.6 | G11: 13 | H11: 5 | I11: 205
A12: コンクリート部データ
B13: コンクリート断面積 | C13: コン | D13: ｺﾝｸﾘｰﾄ断面２次ﾓｰﾒﾝﾄ | E13: 単位幅 | F13: 溝部換算ｺﾝｸﾘｰﾄ厚さ | G13: 軽量１種ｺﾝｸﾘｰﾄ単位重量 | H13: 軽量2種ｺﾝｸﾘｰﾄ単位重量
B14: AC (cm3) | C14: XC (cm) | D14: Ic (cm4/m) | E14: B (cm) | F14: Hc (cm) | G14: ρ (KN/m3) | H14: ρ (KN/m3)
B15: =150.45/0.6 -> 250.75 | C15: 2.204 | D15: =297.249/0.6 -> 495.415 | E15: 100 | F15: 2.5066 | G15: 20 | H15: 18
A17: 明治合成スラブの重量及び断面性能
A18: 断面性能 | C18: MA50 t=1.2mm Z12
A19: Ｓ (mm) 山上コンクリート厚さ | C19: 50 | D19: 55 | E19: 60 | F19: 65 | G19: 70 | H19: 75 | I19: 80 | J19: 85 | K19: 90 | L19: 95 | M19: 100
A20: Sd | B20: x 10 mm | C20: =C19/10+$E$11 -> 7.55 | D20: 8.05 | E20: 8.55 | F20: 9.05 | G20: 9.55 | H20: 10.05 | I20: 10.55 | J20: 11.05 | K20: 11.55 | L20: 12.05 | M20: 12.55
A21: cＸn | B21: x 10 mm | C21: =(-$D$6*$C$11+($D$6^2*$C$11^2+2*$D$6*$E$15*$C$11*C20)^(1/2))/$E$15 -> 4.11 | D21: 4.29 | E21: 4.47 | F21: 4.65 | G21: 4.82 | H21: 4.99 | I21: 5.15 | J21: 5.31 | K21: 5.47 | L21: 5.62 | M21: 5.77
A22: c In | B22: x 10^4 mm4 | C22: =INT(($E$15*C21^3)/3+$D$6*($D$11+$C$11*(C20-C21)^2)) -> 6236 | D22: =INT(($E$15*D21^3)/3+$D$6*($D$11+$C$11*(D20-D21)^2)) -> 7120 | E22: 8081 | F22: 9122 | G22: 10243 | H22: 11445 | I22: 12730 | J22: 14097 | K22: 15549 | L22: 17086 | M22: 18707
A23: cＺc | B23: x 10^3 mm3 | C23: =INT(C22/C21) -> 1517 | D23: =INT(D22/D21) -> 1657 | E23: 1806 | F23: 1962 | G23: 2125 | H23: 2295 | I23: 2471 | J23: 2655 | K23: 2844 | L23: 3040 | M23: 3242
A24: cＺt | B24: x10^3 mm3 | C24: =INT(C22/($D$6*(C19/10+$H$11-C21))*10)/10 -> 70.5 | D24: =INT(D22/($D$6*(D19/10+$H$11-D21))*10)/10 -> 76.4 | E24: 82.5 | F24: 88.7 | G24: 95.1 | H24: 101.5 | I24: 108.1 | J24: 114.7 | K24: 121.4 | L24: 128.2 | M24: 135.1
A25: cSn | B25: x 10^3 mm2 | C25: =$D$6*$C$11*(C19/10+$E$11-C21) -> 844.7 | D25: =$D$6*$C$11*(D19/10+$E$11-D21) -> 922.2 | E25: 1000.9 | F25: 1080.7 | G25: 1161.5 | H25: 1243.3 | I25: 1326.0 | J25: 1409.6 | K25: 1493.9 | L25: 1579.0 | M25: 1664.8
A26: eXn | B26: x 10 mm | C26: =((1/2)*$E$15*(C19/10)^2+$B$15*(C19/10+$C$15)+$E$6*$C$11*C20)/($E$15*C19/10+$B$15+$E$6*$C$11) -> 4.93 | D26: =((1/2)*$E$15*(D19/10)^2+$B$15*(D19/10+$C$15)+$E$6*$C$11*D20)/($E$15*D19/10+$B$15+$E$6*$C$11) -> 5.18 | E26: 5.43 | F26: 5.69 | G26: 5.94 | H26: 6.19 | I26: 6.44 | J26: 6.69 | K26: 6.94 | L26: 7.20 | M26: 7.45
A27: fＩ | B27: x 10^4 mm4 | C27: =INT(($E$15*(C19/10)^3)/12+$E$15*C19/10*(C26-C19/10/2)^2+$D$15+$B$15*(C19/10+$C$15-C26)^2+$E$6*($D$11+$C$11*(C20-C26)^2)) -> 8488 | D27: =INT(($E$15*(D19/10)^3)/12+$E$15*D19/10*(D26-D19/10/2)^2+$D$15+$B$15*(D19/10+$C$15-D26)^2+$E$6*($D$11+$C$11*(D20-D26)^2)) -> 9766 | E27: 11175 | F27: 12720 | G27: 14409 | H27: 16248 | I27: 18242 | J27: 20398 | K27: 22723 | L27: 25222 | M27: 27902
A28: cＺe | B28: x 10^3 mm3 | C28: =INT(C27/C26) -> 1722 | D28: 1185 | E28: =INT(E27/E26) -> 2056 | F28: 2237 | G28: 2426 | H28: 2625 | I28: 2832 | J28: 3048 | K28: 3272 | L28: 3505 | M28: 3747
A30: 重量 | B30: 普通ｺﾝｸﾘｰﾄ | C30: =$B$6*(C19+$F$15*10)+$G$11*9.8 -> 1929 | D30: =$B$6*(D19+$F$15*10)+$G$11*9.8 -> 2049 | E30: 2169 | F30: 2289 | G30: 2409 | H30: 2529 | I30: 2649 | J30: 2769 | K30: 2889 | L30: 3009 | M30: 3129
A31: (N/m2) | B31: １種軽量ｺﾝｸﾘｰﾄ | C31: =$G$15*(C19+$F$15*10)+$G$11*9.8 -> 1629 | D31: =$G$15*(D19+$F$15*10)+$G$11*9.8 -> 1729 | E31: 1829 | F31: 1929 | G31: 2029 | H31: 2129 | I31: 2229 | J31: 2329 | K31: 2429 | L31: 2529 | M31: 2629
A32: 含む ﾃﾞｯｷ + ｺﾝｸﾘｰﾄ | B32: ２種軽量ｺﾝｸﾘｰﾄ | C32: =$H$15*(C19+$F$15*10)+$G$11*9.8 -> 1479 | D32: =$H$15*(D19+$F$15*10)+$G$11*9.8 -> 1569 | E32: 1659 | F32: 1749 | G32: 1839 | H32: 1929 | I32: 2019 | J32: 2109 | K32: 2199 | L32: 2289 | M32: 2379
A34: Sd | B34: コンクリート等価厚さ | J34: ( 単重量 )
A35: cＸn | B35: 有効等価断面の合成スラブ圧縮縁から中立軸までの距離 | J35: 普通ｺﾝｸﾘｰﾄ 24 KN/m3
A36: c In | B36: 引張側コンクリートを無視した合成スラブの中立軸回りの有効等価断面二次モーメント（コンクリート換算） | J36: １種軽量ｺﾝｸﾘｰﾄ 20 KN/m3
A37: cＺc | B37: 有効等価断面の圧縮側断面係数 | J37: ２種軽量ｺﾝｸﾘｰﾄ 18 KN/m3
A38: cＺt | B38: 有効等価断面の引張側断面係数 | J38: （ デッキ自重修正表 ） 上記重量表に加算
A39: cSn | B39: 有効等価断面の中立軸回りの有効等価断面一次モーメント | J39: Z27 MA50 t=1.2 2.94 N/m2
A40: eXn | B40: 全断面有効の合成スラブ上端から中立軸までの距離
A41: fＩ | B41: 全断面有効の合成スラブの中立軸回りの等価断面二次モーメント（コンクリート換算）
A42: cＺe | B42: 全断面有効の合成スラブ上端からの断面性能

Sheet MA50-1.6 (hidden)
A1: ＭＡ５０デッキ 1.6㎜ 合成スラブ用計算表 | E1: （ＳＩ単位）
A3: 入力データ
B4: 普通ｺﾝｸﾘｰﾄ単重重量 | C4: ｺﾝｸﾘｰﾄ圧縮強度 | D4: 正曲げ用ヤング係数比 | E4: 負曲げ用ヤング係数比 | F4: ﾃﾞｯｷ降伏点強度
B5: ρ (KN/m3) | C5: Ｆc (N/mm2) | D5: ｎｐ | E5: ｎｍ | F5: Ｆ (N/mm2)
B6: 24 | C6: 21 | D6: 15 | E6: 15 | F6: 235
A8: デッキ単体データ
B9: デッキ厚さ | C9: 断面積 | D9: 断面２次ﾓｰﾒﾝﾄ | E9: 中立軸 | F9: 断面係数 | G9: デッキ重量 | H9: デッキ高さ | I9: ﾔﾝｸﾞ率
B10: ｔ (mm) | C10: a (mm2) | D10: sＩ (mm4/m) | E10: cm | F10: Z (mm3/m) | G10: kg/m2 | H10: cm | I10: KN/mm2
B11: 1.6 | C11: 21.67 | D11: 88.6 | E11: 2.55 | F11: 34.8 | G11: 17.2 | H11: 5 | I11: 205
A12: コンクリート部データ
B13: コンクリート断面積 | C13: コン | D13: ｺﾝｸﾘｰﾄ断面２次ﾓｰﾒﾝﾄ | E13: 単位幅 | F13: 溝部換算ｺﾝｸﾘｰﾄ厚さ | G13: 軽量１種ｺﾝｸﾘｰﾄ単位重量 | H13: 軽量2種ｺﾝｸﾘｰﾄ単位重量
B14: AC (cm3) | C14: XC (cm) | D14: Ic (cm4/m) | E14: B (cm) | F14: Hc (cm) | G14: ρ (KN/m3) | H14: ρ (KN/m3)
B15: 247.7 | C15: 2.187 | D15: 481.29833 | E15: 100 | F15: 2.4768 | G15: 20 | H15: 18
A17: 明治合成スラブの重量及び断面性能
A18: 断面性能 | C18: MA50 t=1.6mm Z12
A19: Ｓ (mm) 山上コンクリート厚さ | C19: 50 | D19: 55 | E19: 60 | F19: 65 | G19: 70 | H19: 75 | I19: 80 | J19: 85 | K19: 90 | L19: 95 | M19: 100
A20: Sd | B20: x 10 mm | C20: =C19/10+$E$11 -> 7.55 | D20: 8.05 | E20: 8.55 | F20: 9.05 | G20: 9.55 | H20: 10.05 | I20: 10.55 | J20: 11.05 | K20: 11.55 | L20: 12.05 | M20: 12.55
A21: cＸn | B21: x 10 mm | C21: =(-$D$6*$C$11+($D$6^2*$C$11^2+2*$D$6*$E$15*$C$11*C20)^(1/2))/$E$15 -> 4.47 | D21: 4.68 | E21: 4.88 | F21: 5.08 | G21: 5.27 | H21: 5.46 | I21: 5.65 | J21: 5.83 | K21: 6.00 | L21: 6.18 | M21: 6.35
A22: c In | B22: x 10^4 mm4 | C22: =INT(($E$15*C21^3)/3+$D$6*($D$11+$C$11*(C20-C21)^2)) -> 7389 | D22: =INT(($E$15*D21^3)/3+$D$6*($D$11+$C$11*(D20-D21)^2)) -> 8437 | E22: 9580 | F22: 10821 | G22: 12162 | H22: 13602 | I22: 15145 | J22: 16791 | K22: 18541 | L22: 20396 | M22: 22358
A23: cＺc | B23: x 10^3 mm3 | C23: =INT(C22/C21) -> 1652 | D23: =INT(D22/D21) -> 1802 | E23: 1962 | F23: 2130 | G23: 2306 | H23: 2490 | I23: 2682 | J23: 2881 | K23: 3087 | L23: 3301 | M23: 3521
A24: cＺt | B24: x10^3 mm3 | C24: =INT(C22/($D$6*(C19/10+$H$11-C21))*10)/10 -> 89.1 | D24: =INT(D22/($D$6*(D19/10+$H$11-D21))*10)/10 -> 96.6 | E24: 104.4 | F24: 112.3 | G24: 120.5 | H24: 128.8 | I24: 137.3 | J24: 145.8 | K24: 154.5 | L24: 163.4 | M24: 172.3
A25: cSn | B25: x 10^3 mm2 | C25: =$D$6*$C$11*(C19/10+$E$11-C21) -> 1000.3 | D25: =$D$6*$C$11*(D19/10+$E$11-D21) -> 1095.3 | E25: 1192.0 | F25: 1290.4 | G25: 1390.2 | H25: 1491.5 | I25: 1594.0 | J25: 1697.7 | K25: 1802.6 | L25: 1908.6 | M25: 2015.6
A26: eXn | B26: x 10 mm | C26: =((1/2)*$E$15*(C19/10)^2+$B$15*(C19/10+$C$15)+$E$6*$C$11*C20)/($E$15*C19/10+$B$15+$E$6*$C$11) -> 5.11 | D26: =((1/2)*$E$15*(D19/10)^2+$B$15*(D19/10+$C$15)+$E$6*$C$11*D20)/($E$15*D19/10+$B$15+$E$6*$C$11) -> 5.37 | E26: 5.63 | F26: 5.89 | G26: 6.15 | H26: 6.41 | I26: 6.67 | J26: 6.92 | K26: 7.18 | L26: 7.44 | M26: 7.69
A27: fＩ | B27: x 10^4 mm4 | C27: =INT(($E$15*(C19/10)^3)/12+$E$15*C19/10*(C26-C19/10/2)^2+$D$15+$B$15*(C19/10+$C$15-C26)^2+$E$6*($D$11+$C$11*(C20-C26)^2)) -> 9261 | D27: =INT(($E$15*(D19/10)^3)/12+$E$15*D19/10*(D26-D19/10/2)^2+$D$15+$B$15*(D19/10+$C$15-D26)^2+$E$6*($D$11+$C$11*(D20-D26)^2)) -> 10636 | E27: 12151 | F27: 13812 | G27: 15626 | H27: 17599 | I27: 19737 | J27: 22046 | K27: 24533 | L27: 27205 | M27: 30066
A28: cＺe | B28: x 10^3 mm3 | C28: =INT(C27/C26) -> 1811 | D28: =INT(D27/D26) -> 1979 | E28: 2156 | F28: 2343 | G28: 2540 | H28: 2745 | I28: 2960 | J28: 3184 | K28: 3416 | L28: 3658 | M28: 3908
A30: 重量 | B30: 普通ｺﾝｸﾘｰﾄ | C30: =$B$6*(C19+$F$15*10)+$G$11*9.8 -> 1963 | D30: =$B$6*(D19+$F$15*10)+$G$11*9.8 -> 2083 | E30: 2203 | F30: 2323 | G30: 2443 | H30: 2563 | I30: 2683 | J30: 2803 | K30: 2923 | L30: 3043 | M30: 3163
A31: (N/m2) | B31: １種軽量ｺﾝｸﾘｰﾄ | C31: =$G$15*(C19+$F$15*10)+$G$11*9.8 -> 1664 | D31: =$G$15*(D19+$F$15*10)+$G$11*9.8 -> 1764 | E31: 1864 | F31: 1964 | G31: 2064 | H31: 2164 | I31: 2264 | J31: 2364 | K31: 2464 | L31: 2564 | M31: 2664
A32: 含む ﾃﾞｯｷ + ｺﾝｸﾘｰﾄ | B32: ２種軽量ｺﾝｸﾘｰﾄ | C32: =$H$15*(C19+$F$15*10)+$G$11*9.8 -> 1514 | D32: =$H$15*(D19+$F$15*10)+$G$11*9.8 -> 1604 | E32: 1694 | F32: 1784 | G32: 1874 | H32: 1964 | I32: 2054 | J32: 2144 | K32: 2234 | L32: 2324 | M32: 2414
E33: (ar)
A34: Sd | B34: コンクリート等価厚さ | J34: ( 単重量 )
A35: cＸn | B35: 有効等価断面の合成スラブ圧縮縁から中立軸までの距離 | J35: 普通ｺﾝｸﾘｰﾄ 24 KN/m3
A36: c In | B36: 引張側コンクリートを無視した合成スラブの中立軸回りの有効等価断面二次モーメント（コンクリート換算） | J36: １種軽量ｺﾝｸﾘｰﾄ 20 KN/m3
A37: cＺc | B37: 有効等価断面の圧縮側断面係数 | J37: ２種軽量ｺﾝｸﾘｰﾄ 18 KN/m3
A38: cＺt | B38: 有効等価断面の引張側断面係数 | J38: （ デッキ自重修正表 ） 上記重量表に加算
A39: cSn | B39: 有効等価断面の中立軸回りの有効等価断面一次モーメント | J39: Z27 MA50 t=1.6 2.94 N/m2
A40: eXn | B40: 全断面有効の合成スラブ上端から中立軸までの距離
A41: fＩ | B41: 全断面有効の合成スラブの中立軸回りの等価断面二次モーメント（コンクリート換算）
A42: cＺe | B42: 全断面有効の合成スラブ上端からの断面性能

Sheet MA75-1.2 (hidden)
A1: ＭＡ７５デッキ 1.2㎜ 合成スラブ用計算表 | E1: （ＳＩ単位）
A3: 入力データ
B4: 普通ｺﾝｸﾘｰﾄ単重重量 | C4: ｺﾝｸﾘｰﾄ圧縮強度 | D4: 正曲げ用ヤング係数比 | E4: 負曲げ用ヤング係数比 | F4: ﾃﾞｯｷ降伏点強度
B5: ρ (KN/m3) | C5: Ｆc (N/mm2) | D5: ｎｐ | E5: ｎｍ | F5: Ｆ (N/mm2)
B6: 24 | C6: 21 | D6: 15 | E6: 15 | F6: 235
A8: デッキ単体データ
B9: デッキ厚さ | C9: 断面積 | D9: 断面２次ﾓｰﾒﾝﾄ | E9: 中立軸 | F9: 断面係数 | G9: デッキ重量 | H9: デッキ高さ | I9: ﾔﾝｸﾞ率
B10: ｔ (mm) | C10: a (mm2) | D10: sＩ (mm4/m) | E10: cm | F10: Z (mm3/m) | G10: kg/m2 | H10: cm | I10: KN/mm2
B11: 1.2 | C11: 17.58 | D11: 167.8 | E11: 3.7 | F11: 44.16 | G11: 14.1 | H11: 7.5 | I11: 205
A12: コンクリート部データ
B13: コンクリート断面積 | C13: コン | D13: ｺﾝｸﾘｰﾄ断面２次ﾓｰﾒﾝﾄ | E13: 単位幅 | F13: 溝部換算ｺﾝｸﾘｰﾄ厚さ | G13: 軽量１種ｺﾝｸﾘｰﾄ単位重量 | H13: 軽量2種ｺﾝｸﾘｰﾄ単位重量
B14: AC (cm3) | C14: XC (cm) | D14: Ic (cm4/m) | E14: B (cm) | F14: Hc (cm) | G14: ρ (KN/m3) | H14: ρ (KN/m3)
B15: 373.3 | C15: 3.254 | D15: 1694.3 | E15: 100 | F15: 3.7326 | G15: 20 | H15: 18
A17: 明治合成スラブの重量及び断面性能
A18: 断面性能 | C18: MA75 t=1.2mm Z12
A19: Ｓ (mm) 山上コンクリート厚さ | C19: 50 | D19: 55 | E19: 60 | F19: 65 | G19: 70 | H19: 75 | I19: 80 | J19: 85 | K19: 90 | L19: 95 | M19: 100
A20: Sd | B20: x 10 mm | C20: =C19/10+$E$11 -> 8.70 | D20: 9.20 | E20: 9.70 | F20: 10.20 | G20: 10.70 | H20: 11.20 | I20: 11.70 | J20: 12.20 | K20: 12.70 | L20: 13.20 | M20: 13.70
A21: cＸn | B21: x 10 mm | C21: =(-$D$6*$C$11+($D$6^2*$C$11^2+2*$D$6*$E$15*$C$11*C20)^(1/2))/$E$15 -> 4.63 | D21: 4.81 | E21: 4.99 | F21: 5.16 | G21: 5.32 | H21: 5.49 | I21: 5.65 | J21: 5.81 | K21: 5.96 | L21: 6.11 | M21: 6.26
A22: c In | B22: x 10^4 mm4 | C22: =INT(($E$15*C21^3)/3+$D$6*($D$11+$C$11*(C20-C21)^2)) -> 10193 | D22: =INT(($E$15*D21^3)/3+$D$6*($D$11+$C$11*(D20-D21)^2)) -> 11308 | E22: 12508 | F22: 13795 | G22: 15168 | H22: 16630 | I22: 18181 | J22: 19821 | K22: 21553 | L22: 23375 | M22: 25290
A23: cＺc | B23: x 10^3 mm3 | C23: =INT(C22/C21) -> 2200 | D23: =INT(D22/D21) -> 2350 | E23: 2508 | F23: 2674 | G23: 2848 | H23: 3030 | I23: 3218 | J23: 3413 | K23: 3615 | L23: 3823 | M23: 4038
A24: cＺt | B24: x10^3 mm3 | C24: =INT(C22/($D$6*(C19/10+$H$11-C21))*10)/10 -> 86.3 | D24: =INT(D22/($D$6*(D19/10+$H$11-D21))*10)/10 -> 92.0 | E24: 97.9 | F24: 104.0 | G24: 110.2 | H24: 116.5 | I24: 123.0 | J24: 129.6 | K24: 136.3 | L24: 143.1 | M24: 150.0
A25: cSn | B25: x 10^3 mm2 | C25: =$D$6*$C$11*(C19/10+$E$11-C21) -> 1072.7 | D25: =$D$6*$C$11*(D19/10+$E$11-D21) -> 1157.3 | E25: 1243.1 | F25: 1329.8 | G25: 1417.5 | H25: 1506.1 | I25: 1595.6 | J25: 1685.9 | K25: 1777.0 | L25: 1868.7 | M25: 1961.2
A26: eXn | B26: x 10 mm | C26: =((1/2)*$E$15*(C19/10)^2+$B$15*(C19/10+$C$15)+$E$6*$C$11*C20)/($E$15*C19/10+$B$15+$E$6*$C$11) -> 5.83 | D26: =((1/2)*$E$15*(D19/10)^2+$B$15*(D19/10+$C$15)+$E$6*$C$11*D20)/($E$15*D19/10+$B$15+$E$6*$C$11) -> 6.07 | E26: 6.32 | F26: 6.56 | G26: 6.81 | H26: 7.05 | I26: 7.30 | J26: 7.54 | K26: 7.79 | L26: 8.04 | M26: 8.28
A27: fＩ | B27: x 10^4 mm4 | C27: =INT(($E$15*(C19/10)^3)/12+$E$15*C19/10*(C26-C19/10/2)^2+$D$15+$B$15*(C19/10+$C$15-C26)^2+$E$6*($D$11+$C$11*(C20-C26)^2)) -> 15162 | D27: =INT(($E$15*(D19/10)^3)/12+$E$15*D19/10*(D26-D19/10/2)^2+$D$15+$B$15*(D19/10+$C$15-D26)^2+$E$6*($D$11+$C$11*(D20-D26)^2)) -> 16932 | E27: 18850 | F27: 20923 | G27: 23157 | H27: 25557 | I27: 28131 | J27: 30885 | K27: 33824 | L27: 36955 | M27: 40285
A28: cＺe | B28: x 10^3 mm3 | C28: 2602 | D28: 2789 | E28: =INT(E27/E26) -> 2984 | F28: 3189 | G28: 3402 | H28: 3624 | I28: 3854 | J28: 4094 | K28: 4341 | L28: 4598 | M28: 4863
A30: 重量 | B30: 普通ｺﾝｸﾘｰﾄ | C30: =$B$6*(C19+$F$15*10)+$G$11*9.8 -> 2234 | D30: =$B$6*(D19+$F$15*10)+$G$11*9.8 -> 2354 | E30: 2474 | F30: 2594 | G30: 2714 | H30: 2834 | I30: 2954 | J30: 3074 | K30: 3194 | L30: 3314 | M30: 3434
A31: (N/m2) | B31: １種軽量ｺﾝｸﾘｰﾄ | C31: =$G$15*(C19+$F$15*10)+$G$11*9.8 -> 1885 | D31: =$G$15*(D19+$F$15*10)+$G$11*9.8 -> 1985 | E31: 2085 | F31: 2185 | G31: 2285 | H31: 2385 | I31: 2485 | J31: 2585 | K31: 2685 | L31: 2785 | M31: 2885
A32: 含む ﾃﾞｯｷ + ｺﾝｸﾘｰﾄ | B32: ２種軽量ｺﾝｸﾘｰﾄ | C32: =$H$15*(C19+$F$15*10)+$G$11*9.8 -> 1710 | D32: =$H$15*(D19+$F$15*10)+$G$11*9.8 -> 1800 | E32: 1890 | F32: 1980 | G32: 2070 | H32: 2160 | I32: 2250 | J32: 2340 | K32: 2430 | L32: 2520 | M32: 2610
A34: Sd | B34: コンクリート等価厚さ | J34: ( 単重量 )
A35: cＸn | B35: 有効等価断面の合成スラブ圧縮縁から中立軸までの距離 | J35: 普通ｺﾝｸﾘｰﾄ 24 KN/m3
A36: c In | B36: 引張側コンクリートを無視した合成スラブの中立軸回りの有効等価断面二次モーメント（コンクリート換算） | J36: １種軽量ｺﾝｸﾘｰﾄ 20 KN/m3
A37: cＺc | B37: 有効等価断面の圧縮側断面係数 | J37: ２種軽量ｺﾝｸﾘｰﾄ 18 KN/m3
A38: cＺt | B38: 有効等価断面の引張側断面係数 | J38: （ デッキ自重修正表 ） 上記重量表に加算
A39: cSn | B39: 有効等価断面の中立軸回りの有効等価断面一次モーメント | J39: Z27 MA75 t=1.2 3.92 N/m2
A40: eXn | B40: 全断面有効の合成スラブ上端から中立軸までの距離
A41: fＩ | B41: 全断面有効の合成スラブの中立軸回りの等価断面二次モーメント（コンクリート換算）
A42: cＺe | B42: 全断面有効の合成スラブ上端からの断面性能

Sheet MA75-1.6 (hidden)
A1: ＭＡ７５デッキ 1.6㎜ 合成スラブ用計算表 | E1: （ＳＩ単位）
A3: 入力データ
B4: 普通ｺﾝｸﾘｰﾄ単重重量 | C4: ｺﾝｸﾘｰﾄ圧縮強度 | D4: 正曲げ用ヤング係数比 | E4: 負曲げ用ヤング係数比 | F4: ﾃﾞｯｷ降伏点強度
B5: ρ (KN/m3) | C5: Ｆc (N/mm2) | D5: ｎｐ | E5: ｎｍ | F5: Ｆ (N/mm2)
B6: 24 | C6: 21 | D6: 15 | E6: 15 | F6: 235
A8: デッキ単体データ
B9: デッキ厚さ | C9: 断面積 | D9: 断面２次ﾓｰﾒﾝﾄ | E9: 中立軸 | F9: 断面係数 | G9: デッキ重量 | H9: デッキ高さ | I9: ﾔﾝｸﾞ率
B10: ｔ (mm) | C10: a (mm2) | D10: sＩ (mm4/m) | E10: cm | F10: Z (mm3/m) | G10: kg/m2 | H10: cm | I10: KN/mm2
B11: 1.6 | C11: 23.25 | D11: 219.8 | E11: 3.71 | F11: 57.99 | G11: 18.8 | H11: 7.5 | I11: 205
A12: コンクリート部データ
B13: コンクリート断面積 | C13: コン | D13: ｺﾝｸﾘｰﾄ断面２次ﾓｰﾒﾝﾄ | E13: 単位幅 | F13: 溝部換算ｺﾝｸﾘｰﾄ厚さ | G13: 軽量１種ｺﾝｸﾘｰﾄ単位重量 | H13: 軽量2種ｺﾝｸﾘｰﾄ単位重量
B14: AC (cm3) | C14: XC (cm) | D14: Ic (cm4/m) | E14: B (cm) | F14: Hc (cm) | G14: ρ (KN/m3) | H14: ρ (KN/m3)
B15: 369.97 | C15: 3.195 | D15: 1658.4 | E15: 100 | F15: 3.7 | G15: 20 | H15: 18
A17: 明治合成スラブの重量及び断面性能
A18: 断面性能 | C18: MA75 t=1.6mm Z12
A19: Ｓ (mm) 山上コンクリート厚さ | C19: 50 | D19: 55 | E19: 60 | F19: 65 | G19: 70 | H19: 75 | I19: 80 | J19: 85 | K19: 90 | L19: 95 | M19: 100
A20: Sd | B20: x 10 mm | C20: =C19/10+$E$11 -> 8.71 | D20: 9.21 | E20: 9.71 | F20: 10.21 | G20: 10.71 | H20: 11.21 | I20: 11.71 | J20: 12.21 | K20: 12.71 | L20: 13.21 | M20: 13.71
A21: cＸn | B21: x 10 mm | C21: =(-$D$6*$C$11+($D$6^2*$C$11^2+2*$D$6*$E$15*$C$11*C20)^(1/2))/$E$15 -> 5.05 | D21: 5.25 | E21: 5.45 | F21: 5.64 | G21: 5.83 | H21: 6.02 | I21: 6.20 | J21: 6.38 | K21: 6.55 | L21: 6.73 | M21: 6.89
A22: c In | B22: x 10^4 mm4 | C22: =INT(($E$15*C21^3)/3+$D$6*($D$11+$C$11*(C20-C21)^2)) -> 12261 | D22: =INT(($E$15*D21^3)/3+$D$6*($D$11+$C$11*(D20-D21)^2)) -> 13589 | E22: 15021 | F22: 16560 | G22: 18207 | H22: 19963 | I22: 21829 | J22: 23807 | K22: 25897 | L22: 28101 | M22: 30420
A23: cＺc | B23: x 10^3 mm3 | C23: =INT(C22/C21) -> 2427 | D23: =INT(D22/D21) -> 2586 | E23: 2756 | F23: 2934 | G23: 3121 | H23: 3317 | I23: 3521 | J23: 3732 | K23: 3951 | L23: 4178 | M23: 4412
A24: cＺt | B24: x10^3 mm3 | C24: =INT(C22/($D$6*(C19/10+$H$11-C21))*10)/10 -> 109.7 | D24: =INT(D22/($D$6*(D19/10+$H$11-D21))*10)/10 -> 116.9 | E24: 124.4 | F24: 132.1 | G24: 140.0 | H24: 148.1 | I24: 156.4 | J24: 164.9 | K24: 173.5 | L24: 182.3 | M24: 191.2
A25: cSn | B25: x 10^3 mm2 | C25: =$D$6*$C$11*(C19/10+$E$11-C21) -> 1275.9 | D25: =$D$6*$C$11*(D19/10+$E$11-D21) -> 1379.9 | E25: 1485.5 | F25: 1592.5 | G25: 1701.0 | H25: 1810.7 | I25: 1921.8 | J25: 2033.9 | K25: 2147.2 | L25: 2261.5 | M25: 2376.8
A26: eXn | B26: x 10 mm | C26: =((1/2)*$E$15*(C19/10)^2+$B$15*(C19/10+$C$15)+$E$6*$C$11*C20)/($E$15*C19/10+$B$15+$E$6*$C$11) -> 6.01 | D26: =((1/2)*$E$15*(D19/10)^2+$B$15*(D19/10+$C$15)+$E$6*$C$11*D20)/($E$15*D19/10+$B$15+$E$6*$C$11) -> 6.26 | E26: 6.51 | F26: 6.77 | G26: 7.02 | H26: 7.27 | I26: 7.52 | J26: 7.78 | K26: 8.03 | L26: 8.28 | M26: 8.53
A27: fＩ | B27: x 10^4 mm4 | C27: =INT(($E$15*(C19/10)^3)/12+$E$15*C19/10*(C26-C19/10/2)^2+$D$15+$B$15*(C19/10+$C$15-C26)^2+$E$6*($D$11+$C$11*(C20-C26)^2)) -> 16465 | D27: =INT(($E$15*(D19/10)^3)/12+$E$15*D19/10*(D26-D19/10/2)^2+$D$15+$B$15*(D19/10+$C$15-D26)^2+$E$6*($D$11+$C$11*(D20-D26)^2)) -> 18346 | E27: 20385 | F27: 22589 | G27: 24965 | H27: 27517 | I27: 30253 | J27: 33179 | K27: 36301 | L27: 39625 | M27: 43158
A28: cＺe | B28: x 10^3 mm3 | C28: =INT(C27/C26) -> 2741 | D28: 2931 | E28: 3130 | F28: 3338 | G28: 3557 | H28: 3784 | I28: 4021 | J28: 4267 | K28: 4522 | L28: 4785 | M28: 5058
A30: 重量 | B30: 普通ｺﾝｸﾘｰﾄ | C30: =$B$6*(C19+$F$15*10)+$G$11*9.8 -> 2272 | D30: =$B$6*(D19+$F$15*10)+$G$11*9.8 -> 2392 | E30: 2512 | F30: 2632 | G30: 2752 | H30: 2872 | I30: 2992 | J30: 3112 | K30: 3232 | L30: 3352 | M30: 3472
A31: (N/m2) | B31: １種軽量ｺﾝｸﾘｰﾄ | C31: =$G$15*(C19+$F$15*10)+$G$11*9.8 -> 1924 | D31: =$G$15*(D19+$F$15*10)+$G$11*9.8 -> 2024 | E31: 2124 | F31: 2224 | G31: 2324 | H31: 2424 | I31: 2524 | J31: 2624 | K31: 2724 | L31: 2824 | M31: 2924
A32: 含む ﾃﾞｯｷ + ｺﾝｸﾘｰﾄ | B32: ２種軽量ｺﾝｸﾘｰﾄ | C32: =$H$15*(C19+$F$15*10)+$G$11*9.8 -> 1750 | D32: =$H$15*(D19+$F$15*10)+$G$11*9.8 -> 1840 | E32: 1930 | F32: 2020 | G32: 2110 | H32: 2200 | I32: 2290 | J32: 2380 | K32: 2470 | L32: 2560 | M32: 2650
A34: Sd | B34: コンクリート等価厚さ | J34: ( 単重量 )
A35: cＸn | B35: 有効等価断面の合成スラブ圧縮縁から中立軸までの距離 | J35: 普通ｺﾝｸﾘｰﾄ 24 KN/m3
A36: c In | B36: 引張側コンクリートを無視した合成スラブの中立軸回りの有効等価断面二次モーメント（コンクリート換算） | J36: １種軽量ｺﾝｸﾘｰﾄ 20 KN/m3
A37: cＺc | B37: 有効等価断面の圧縮側断面係数 | J37: ２種軽量ｺﾝｸﾘｰﾄ 18 KN/m3
A38: cＺt | B38: 有効等価断面の引張側断面係数 | J38: （ デッキ自重修正表 ） 上記重量表に加算
A39: cSn | B39: 有効等価断面の中立軸回りの有効等価断面一次モーメント | J39: Z27 MA75 t=1.6 4.90 N/m2
A40: eXn | B40: 全断面有効の合成スラブ上端から中立軸までの距離
A41: fＩ | B41: 全断面有効の合成スラブの中立軸回りの等価断面二次モーメント（コンクリート換算）
A42: cＺe | B42: 全断面有効の合成スラブ上端からの断面性能

Sheet 工事情報 (hidden)
A1: 工事名称 | B1: 用途 | C1: 最大スパン | D1: デッキ幅方向のスラブ長さ | E1: デッキ長手方向のスラブ長さ | F1: 増打ちコンクリート厚さ | G1: 天井荷重他 | H1: 積載荷重 | I1: 地震時荷重 | J1: 床耐火時間 | K1: デッキ種類 | L1: コンクリート種類 | M1: コンクリート基準強度 | N1: コンクリート山上厚さ | O1: 溶接金網または異形鉄筋 | P1: 標準せん断力係数 | Q1: デッキ長手方向接合間隔 | R1: 梁との接合形式 | S1: 頭付きスタッドを選択した場合の追加項目 (1) | T1: 頭付きスタッドを選択した場合の追加項目 (2)
A2: (仮称)錦糸町再開発計画 | B2: 2F | C2: 3.02 | D2: 5.92 | E2: 6.4 | F2: 0 | G2: 1100 | H2: 4900 | I2: 800 | J2: 床2時間 | K2: MA50-1.6 | L2: 普通 | M2: 24 | N2: 100 | O2: D10-200X200 | P2: 1 | Q2: 100 | R2: 頭付きスタッド | S2: φ19 | T2: L-110
A3: MA50-1時間 | B3: テスト | C3: 2.2 | D3: 7 | E3: 6.6 | F3: 0 | G3: 0 | H3: 5000 | I3: 2000 | J3: 床1時間 | K3: MA50-1.0 | L3: 普通 | M3: 18 | N3: 80 | O3: φ6-150X150 | P3: 1 | Q3: 300 | R3: 頭付きスタッド | S3: φ16 | T3: L-90
A4: MA50-2時間 | B4: テスト | C4: 3 | D4: 7 | E4: 7 | F4: 0 | G4: 0 | H4: 5000 | I4: 1500 | J4: 床2時間 | K4: MA50-1.0 | L4: 普通 | M4: 18 | N4: 80 | O4: φ6-150X150 | P4: 1 | Q4: 300 | R4: 頭付きスタッド | S4: φ16 | T4: L-80
A5: MA75-1時間 | B5: テスト | C5: 2.7 | D5: 7 | E5: 8.1 | F5: 20 | G5: 0 | H5: 6000 | I5: 2000 | J5: 床1時間 | K5: MA75-1.2 | L5: 普通 | M5: 18 | N5: 100 | O5: φ6-100X100 | P5: 1 | Q5: 300 | R5: 頭付きスタッド | S5: φ16 | T5: L-110
A6: MA75-2時間 | B6: テスト | C6: 2.7 | D6: 7 | E6: 8.1 | F6: 0 | G6: 0 | H6: 10000 | I6: 2000 | J6: 床2時間 | K6: MA75-1.2 | L6: 軽量1種 | M6: 18 | N6: 100 | O6: D10-200X200 | P6: 1 | Q6: 300 | R6: 頭付きスタッド | S6: φ16 | T6: L-110
A7: テスト_Fwe_1 | B7: テスト | C7: 2.7 | D7: 7 | E7: 8.1 | F7: 0 | G7: 1000 | H7: 5000 | I7: 1500 | J7: 床2時間 | K7: MA50-1.2 | L7: 普通 | M7: 21 | N7: 100 | O7: D10-200X200 | P7: 1 | Q7: 300 | R7: 頭付きスタッド | S7: φ16 | T7: L-110
A8: テスト_Fwe_2 | B8: テスト | C8: 2 | D8: 7 | E8: 8 | F8: 0 | G8: 1000 | H8: 8000 | I8: 1500 | J8: 床2時間 | K8: MA50-1.2 | L8: 普通 | M8: 21 | N8: 100 | O8: D10-200X200 | P8: 1 | Q8: 300 | R8: 頭付きスタッド | S8: φ16 | T8: L-80
A9: テスト_Fwe_3 | B9: テスト | C9: 2 | D9: 7 | E9: 8 | F9: 0 | G9: 1000 | H9: 10000 | I9: 1500 | J9: 床2時間 | K9: MA50-1.2 | L9: 普通 | M9: 21 | N9: 100 | O9: D10-200X200 | P9: 1 | Q9: 300 | R9: 頭付きスタッド | S9: φ16 | T9: L-80
A10: テスト_耐火指定なし | B10: テスト | C10: 3.02 | D10: 6.4 | E10: 7.55 | F10: 0 | G10: 1700 | H10: 4900 | I10: 800 | J10: 耐火要求なし | K10: MA75-1.2 | L10: 普通 | M10: 24 | N10: 80 | O10: D10-200X200 | P10: 1 | Q10: 100 | R10: 頭付きスタッド | S10: φ19 | T10: L-110
A11: テスト_文字列折り返し | B11: テスト | C11: 2.2 | D11: 7 | E11: 8.8 | F11: 20 | G11: 0 | H11: 7000 | I11: 2000 | J11: 床1時間 | K11: MA50-1.6 | L11: 普通 | M11: 21 | N11: 100 | O11: φ6-100X100 | P11: 1 | Q11: 300 | R11: 焼抜き栓溶接

Sheet ヘルプテキスト (hidden)
A1: 対象オブジェクト名 | B1: 表示テキスト
A2: cbb工事名称 | B2: (工事名称用ヘルプテキスト)
A3: txb用途 | B3: (用途用ヘルプテキスト)
A4: txb最大スパン | B4: (最大スパン用ヘルプテキスト)
A5: txbデッキ幅方向長さ | B5: (デッキ幅方向長さ用ヘルプテキスト)
A6: txbデッキ長手方向長さ | B6: (デッキ長手方向長さ用ヘルプテキスト)
A7: txb増打ちコンクリ | B7: (増打ちコンクリ用ヘルプテキスト)
A8: txb天井荷重 | B8: (天井荷重用ヘルプテキスト)
A9: txb積載荷重 | B9: (積載荷重用ヘルプテキスト)
A10: txb地震時荷重 | B10: (地震時荷重用ヘルプテキスト)
A11: opb床2時間 | B11: (床耐火時間用ヘルプテキスト)
A12: opb床1時間 | B12: (床耐火時間用ヘルプテキスト)
A13: opb耐火要求なし | B13: (床耐火時間用ヘルプテキスト)
A14: opbMA5010 | B14: (デッキ種類用ヘルプテキスト)
A15: opbMA5012 | B15: (デッキ種類用ヘルプテキスト)
A16: opbMA5016 | B16: (デッキ種類用ヘルプテキスト)
A17: opbMA7512 | B17: (デッキ種類用ヘルプテキスト)
A18: opbMA7516 | B18: (デッキ種類用ヘルプテキスト)
A19: opb普通 | B19: (コンクリート種類用ヘルプテキスト)
A20: opb軽量1種 | B20: (コンクリート種類用ヘルプテキスト)
A21: opb軽量2種 | B21: (コンクリート種類用ヘルプテキスト)
A22: opb強度18 | B22: (コンクリート基準強度用ヘルプテキスト)
A23: opb強度21 | B23: (コンクリート基準強度用ヘルプテキスト)
A24: opb強度24 | B24: (コンクリート基準強度用ヘルプテキスト)
A25: opb厚さ50 | B25: (コンクリート山上厚さ用ヘルプテキスト)
A26: opb厚さ60 | B26: (コンクリート山上厚さ用ヘルプテキスト)
A27: opb厚さ70 | B27: (コンクリート山上厚さ用ヘルプテキスト)
A28: opb厚さ80 | B28: (コンクリート山上厚さ用ヘルプテキスト)
A29: opb厚さ85 | B29: (コンクリート山上厚さ用ヘルプテキスト)
A30: opb厚さ90 | B30: (コンクリート山上厚さ用ヘルプテキスト)
A31: opb厚さ95 | B31: (コンクリート山上厚さ用ヘルプテキスト)
A32: opb厚さ100 | B32: (コンクリート山上厚さ用ヘルプテキスト)
A33: opbP6150X150 | B33: (溶接金網または異形鉄筋用ヘルプテキスト)
A34: opbP6100X100 | B34: (溶接金網または異形鉄筋用ヘルプテキスト)
A35: opbD10200X200 | B35: (溶接金網または異形鉄筋用ヘルプテキスト)
A36: txb標準せん断力係数 | B36: (標準せん断力係数用ヘルプテキスト)
A37: txbデッキ長手方向間隔 | B37: (デッキ長手方向間隔用ヘルプテキスト)
A38: opb焼抜き栓溶接 | B38: (梁との接合形式用ヘルプテキスト)
A39: opb発射打込み鋲 | B39: (梁との接合形式用ヘルプテキスト)
A40: opb頭付きスタッド | B40: 径の選択 … 無被覆耐火ではφ16以上 / 長さの選択 … デッキせい 50mm : L ≧ 80mm, デッキせい 75mm : L ≧ 110mm
A41: opbP13 | B41: 径の選択 … 無被覆耐火ではφ16以上 / 長さの選択 … デッキせい 50mm : L ≧ 80mm, デッキせい 75mm : L ≧ 110mm
A42: opbP16 | B42: 径の選択 … 無被覆耐火ではφ16以上 / 長さの選択 … デッキせい 50mm : L ≧ 80mm, デッキせい 75mm : L ≧ 110mm
A43: opbP19 | B43: 径の選択 … 無被覆耐火ではφ16以上 / 長さの選択 … デッキせい 50mm : L ≧ 80mm, デッキせい 75mm : L ≧ 110mm
A44: opbP22 | B44: 径の選択 … 無被覆耐火ではφ16以上 / 長さの選択 … デッキせい 50mm : L ≧ 80mm, デッキせい 75mm : L ≧ 110mm
A45: opbL80 | B45: 径の選択 … 無被覆耐火ではφ16以上 / 長さの選択 … デッキせい 50mm : L ≧ 80mm, デッキせい 75mm : L ≧ 110mm
A46: opbL90 | B46: 径の選択 … 無被覆耐火ではφ16以上 / 長さの選択 … デッキせい 50mm : L ≧ 80mm, デッキせい 75mm : L ≧ 110mm
A47: opbL100 | B47: 径の選択 … 無被覆耐火ではφ16以上 / 長さの選択 … デッキせい 50mm : L ≧ 80mm, デッキせい 75mm : L ≧ 110mm
A48: opbL110 | B48: 径の選択 … 無被覆耐火ではφ16以上 / 長さの選択 … デッキせい 50mm : L ≧ 80mm, デッキせい 75mm : L ≧ 110mm
A49: opbL120 | B49: 径の選択 … 無被覆耐火ではφ16以上 / 長さの選択 … デッキせい 50mm : L ≧ 80mm, デッキせい 75mm : L ≧ 110mm
A50: opbL130 | B50: 径の選択 … 無被覆耐火ではφ16以上 / 長さの選択 … デッキせい 50mm : L ≧ 80mm, デッキせい 75mm : L ≧ 110mm
A51: opbL140 | B51: 径の選択 … 無被覆耐火ではφ16以上 / 長さの選択 … デッキせい 50mm : L ≧ 80mm, デッキせい 75mm : L ≧ 110mm
